fUST/lending_fUST_20250503
["ID","MTS","AMOUNT","RATE_DAILY","PERIOD"]
[359732588,1746286233735,-911.98,0.0001857,2]
[359732589,1746286233744,-654.64,0.0001857,2]
[359732590,1746286233754,-1034.72,0.0001857,2]
[359732591,1746286233763,-542.74865832,0.0001857,2]
[359732592,1746286233772,-581.46,0.0001857,2]
[359732593,1746286233782,-678.87,0.0001857,2]
[359732594,1746286233791,-502.79616661,0.0001857,2]
[359732595,1746286233800,-151.502301,0.00018571,2]
[359732596,1746286233810,-151.0,0.00018571,2]
[359732597,1746286233819,-490.77267241,0.00018573,2]
[359732598,1746286233829,-500.0,0.00018573,2]
[359732599,1746286233838,-501.61174265,0.00018573,2]
[359732600,1746286233848,-500.0,0.00018573,2]
[359732601,1746286233857,-500.0,0.00018573,2]
[359732602,1746286233867,-500.0,0.0001863,2]
[359732603,1746286233878,-2265.54,0.00018659,3]
[359732604,1746286233888,-1228.47,0.00018659,3]
[359732605,1746286233897,-614.24,0.00018659,3]
[359732606,1746286233907,-307.12,0.00018659,3]
[359732607,1746286233916,-153.56,0.00018659,3]
[359732608,1746286233926,-460.68,0.00018659,3]
[359732609,1746286233936,-151.0,0.00018669,2]
[359732610,1746286233946,-400.0,0.0001867,2]
[359732611,1746286233956,-400.0,0.0001867,2]
[359732612,1746286233965,-400.0,0.0001867,2]
[359732613,1746286233974,-400.0,0.0001867,2]
[359732614,1746286233984,-744.43,0.0001867,2]
[359732615,1746286233993,-410.53092615,0.0001867,2]
[359732616,1746286234003,-400.0,0.0001867,2]
[359732617,1746286234012,-400.0,0.0001867,2]
[359732618,1746286234021,-400.0,0.0001867,2]
[359732619,1746286234031,-400.0,0.0001867,2]
[359732620,1746286234041,-400.0,0.0001867,2]
[359732621,1746286234051,-400.0,0.0001867,2]
[359732622,1746286234069,-418.13,0.0001867,2]
[359732623,1746286234082,-400.0,0.0001867,2]
[359732624,1746286234092,-400.0,0.0001867,2]
[359732625,1746286234103,-400.0,0.0001867,2]
[359732626,1746286234113,-400.0,0.0001867,2]
[359732627,1746286234124,-400.0,0.0001867,2]
[359732628,1746286234134,-400.0,0.0001867,2]
[359732629,1746286234145,-400.0,0.0001867,2]
[359732630,1746286234156,-400.0,0.0001867,2]
[359732631,1746286234167,-400.0,0.0001867,2]
[359732632,1746286234178,-400.0,0.0001867,2]
[359732633,1746286234188,-400.0,0.0001867,2]
[359732634,1746286234198,-400.0,0.0001867,2]
[359732635,1746286234208,-400.0,0.0001867,2]
[359732636,1746286234218,-400.0,0.0001867,2]
[359732637,1746286234228,-400.0,0.0001867,2]
[359732638,1746286234238,-400.0,0.0001867,2]
[359732639,1746286234247,-400.0,0.0001867,2]
[359732640,1746286234257,-400.0,0.0001867,2]
[359732641,1746286234267,-400.0,0.0001867,2]
[359732642,1746286234277,-400.0,0.0001867,2]
[359732643,1746286234287,-400.0,0.0001867,2]
[359732644,1746286234297,-460.45,0.0001867,2]
[359732645,1746286234307,-400.0,0.0001867,2]
[359732646,1746286234317,-580.95,0.0001867,2]
[359732647,1746286234327,-400.0,0.0001867,2]
[359732648,1746286234337,-400.0,0.0001867,2]
[359732649,1746286234347,-400.0,0.0001867,2]
[359732650,1746286234358,-400.0,0.0001867,2]
[359732651,1746286234368,-400.0,0.0001867,2]
[359732652,1746286234377,-804.0,0.0001867,2]
[359732653,1746286234386,-400.0,0.0001867,2]
[359732654,1746286234396,-400.0,0.0001867,2]
[359732655,1746286234406,-589.87,0.0001867,2]
[359732656,1746286234415,-607.93,0.0001867,2]
[359732657,1746286234426,-1252.05,0.0001867,2]
[359732658,1746286234436,-400.0,0.0001867,2]
[359732659,1746286234446,-400.0,0.0001867,2]
[359732660,1746286234456,-400.0,0.0001867,2]
[359732661,1746286234466,-400.0,0.0001867,2]
[359732662,1746286234475,-400.0,0.0001867,2]
[359732663,1746286234485,-551.79,0.0001867,2]
[359732664,1746286234496,-400.0,0.0001867,2]
[359732665,1746286234507,-400.0,0.0001867,2]
[359732666,1746286234517,-400.0,0.0001867,2]
[359732667,1746286234527,-151.0,0.0001867,2]
[359732668,1746286234538,-400.0,0.0001867,2]
[359732669,1746286234547,-484.62,0.0001867,2]
[359732670,1746286234556,-400.0,0.0001867,2]
[359732671,1746286234567,-435.04,0.0001867,2]
[359732672,1746286234576,-400.0,0.0001867,2]
[359732673,1746286234586,-400.0,0.0001867,2]
[359732674,1746286234596,-400.0,0.0001867,2]
[359732675,1746286234607,-187.95017584,0.0001867,2]
[359732676,1746286234617,-400.0,0.0001867,2]
[359732677,1746286234627,-400.0,0.0001867,2]
[359732678,1746286234636,-500.0,0.00018671,2]
[359732679,1746286234649,-400.0,0.00018671,2]
[359732680,1746286234659,-1672.22,0.00018671,2]
[359732681,1746286234668,-581.5,0.00018671,2]
[359732682,1746286234680,-400.0,0.00018671,2]
[359732683,1746286234691,-414.46,0.00018671,2]
[359732684,1746286234701,-848.92,0.00018671,2]
[359732685,1746286234711,-151.0,0.00018671,2]
[359732686,1746286234721,-400.0,0.00018671,2]
[359732687,1746286234731,-2159.78,0.00018671,2]
[359732688,1746286234743,-786.0,0.00018671,2]
[359732689,1746286234752,-400.0,0.00018671,2]
[359732690,1746286234761,-474.08935612,0.00018673,2]
[359732691,1746286234771,-815.22,0.00018692,2]
[359732692,1746286234781,-400.0,0.00018692,2]
[359732693,1746286234791,-841.24,0.00018692,2]
[359732694,1746286234800,-400.0,0.00018692,2]
[359732695,1746286234810,-400.0,0.00018692,2]
[359732696,1746286234820,-2437.89,0.00018692,2]
[359732697,1746286234830,-400.0,0.00018692,2]
[359732698,1746286234840,-185.38,0.00018692,2]
[359732699,1746286234850,-501.67,0.00018692,2]
[359732700,1746286234859,-717.19,0.00018692,2]
[359732701,1746286234868,-400.0,0.00018692,2]
[359732702,1746286234878,-588.4,0.00018692,2]
[359732703,1746286234887,-1546.2,0.00018692,2]
[359732704,1746286234898,-400.0,0.00018692,2]
[359732705,1746286234907,-508.44,0.00018692,2]
[359732706,1746286234916,-1134.81,0.00018692,2]
[359732707,1746286234926,-192.0,0.00018696,2]
[359732708,1746286234936,-304.11641068,0.00018699,2]
[359732709,1746286234946,-1000.0,0.00018699,2]
[359732710,1746286234955,-2634.47771218,0.00018727,2]
[359732711,1746286234964,-151.0,0.00018727,2]
[359732712,1746286234974,-185.519752,0.00018728,2]
[359732713,1746286234985,-400.0,0.00018772,2]
[359732714,1746286234995,-400.0,0.00018772,2]
[359732715,1746286235005,-400.0,0.00018772,2]
[359732716,1746286235015,-400.0,0.00018772,2]
[359732717,1746286235026,-160.70729021,0.00018772,2]
[359732718,1746286235038,-400.0,0.00018772,2]
[359732719,1746286235048,-400.0,0.00018772,2]
[359732720,1746286235058,-400.0,0.00018772,2]
[359732721,1746286235067,-400.0,0.00018772,2]
[359732722,1746286235078,-400.0,0.00018772,2]
[359732723,1746286235087,-400.0,0.00018772,2]
[359732724,1746286235097,-400.0,0.00018772,2]
[359732725,1746286235107,-400.0,0.00018772,2]
[359732726,1746286235117,-400.0,0.00018772,2]
[359732727,1746286235126,-400.0,0.00018772,2]
[359732728,1746286235136,-400.0,0.00018772,2]
[359732729,1746286235147,-400.0,0.00018772,2]
[359732730,1746286235268,-400.0,0.00018772,2]
[359732731,1746286235278,-400.0,0.00018772,2]
[359732732,1746286235289,-400.0,0.00018772,2]
[359732733,1746286235299,-400.0,0.00018772,2]
[359732734,1746286235310,-400.0,0.00018772,2]
[359732735,1746286235320,-400.0,0.00018772,2]
[359732736,1746286235329,-151.0,0.00018772,2]
[359732737,1746286235340,-400.0,0.00018772,2]
[359732738,1746286235349,-151.0,0.00018772,2]
[359732739,1746286235359,-151.0,0.00018772,2]
[359732740,1746286235368,-400.0,0.00018772,2]
[359732741,1746286235378,-400.0,0.00018772,2]
[359732742,1746286235388,-400.0,0.00018772,2]
[359732743,1746286235398,-209.6059804,0.00018772,2]
[359732744,1746286235408,-406.3438556,0.00018772,2]
[359732745,1746286235419,-400.0,0.00018772,2]
[359732746,1746286235429,-400.0,0.00018772,2]
[359732747,1746286235439,-400.0,0.00018772,2]
[359732748,1746286235448,-400.0,0.00018772,2]
[359732749,1746286235458,-207.56471358,0.00018772,2]
[359732750,1746286235467,-403.10134657,0.00018772,2]
[359732751,1746286235476,-401.52530454,0.00018772,2]
[359732752,1746286235485,-400.0,0.00018772,2]
[359732753,1746286235494,-400.0,0.00018772,2]
[359732754,1746286235503,-400.0,0.00018772,2]
[359732755,1746286235512,-400.0,0.00018772,2]
[359732756,1746286235522,-402.1342431,0.00018772,2]
[359732757,1746286235534,-401.49548055,0.00018772,2]
[359732758,1746286235544,-400.0,0.00018772,2]
[359732759,1746286235557,-401.31841447,0.00018772,2]
[359732760,1746286235567,-403.87608503,0.00018772,2]
[359732761,1746286235577,-400.0,0.00018772,2]
[359732762,1746286235589,-408.19160653,0.00018772,2]
[359732763,1746286235599,-510.22529435,0.00018772,2]
[359732764,1746286235608,-400.0,0.00018772,2]
[359732765,1746286235619,-154.78606792,0.00018772,2]
[359732766,1746286235628,-283.71146016,0.00018772,2]
[359732767,1746286235640,-400.0,0.00018772,2]
[359732768,1746286235653,-400.0,0.00018772,2]
[359732769,1746286235664,-400.0,0.00018772,2]
[359732770,1746286235673,-400.0,0.00018772,2]
[359732771,1746286235683,-400.0,0.00018772,2]
[359732772,1746286235693,-400.0,0.00018772,2]
[359732773,1746286235703,-400.0,0.00018772,2]
[359732774,1746286235713,-400.0,0.00018772,2]
[359732775,1746286235723,-400.0,0.00018772,2]
[359732776,1746286235733,-400.0,0.00018772,2]
[359732777,1746286235742,-400.0,0.00018772,2]
[359732778,1746286235752,-408.33961949,0.00018772,2]
[359732779,1746286235762,-400.0,0.00018772,2]
[359732780,1746286235772,-405.35810247,0.00018772,2]
[359732781,1746286235781,-400.0,0.00018772,2]
[359732782,1746286235791,-304.91783303,0.00018772,2]
[359732783,1746286235800,-400.0,0.00018772,2]
[359732784,1746286235810,-395.11581609,0.00018772,2]
[359732785,1746286235820,-400.0,0.00018772,2]
[359732786,1746286235829,-400.0,0.00018772,2]
[359732787,1746286235839,-400.0,0.00018772,2]
[359732788,1746286235849,-400.0,0.00018772,2]
[359732789,1746286235858,-400.0,0.00018772,2]
[359732790,1746286235867,-400.0,0.00018772,2]
[359732791,1746286235877,-400.0,0.00018772,2]
[359732792,1746286235886,-400.0,0.00018772,2]
[359732793,1746286235895,-400.0,0.00018772,2]
[359732794,1746286235905,-200.78472959,0.00018772,2]
[359732795,1746286235915,-400.0,0.00018772,2]
[359732796,1746286235924,-261.28837284,0.00018772,2]
[359732797,1746286235934,-831.91,0.00018772,2]
[359732798,1746286235943,-338.77310318,0.00018772,2]
[359732799,1746286235953,-400.0,0.00018772,2]
[359732800,1746286235963,-400.0,0.00018772,2]
[359732801,1746286235972,-400.0,0.00018772,2]
[359732802,1746286235982,-416.97349749,0.00018772,2]
[359732803,1746286235992,-400.0,0.00018772,2]
[359732804,1746286236002,-400.0,0.00018772,2]
[359732805,1746286236011,-400.0,0.00018772,2]
[359732806,1746286236020,-400.0,0.00018772,2]
[359732807,1746286236030,-501.61457151,0.00018773,2]
[359732808,1746286236040,-500.0,0.00018773,2]
[359732809,1746286236050,-500.0,0.00018773,2]
[359732810,1746286236060,-500.0,0.00018773,2]
[359732811,1746286236069,-501.50885988,0.00018773,2]
[359732812,1746286236080,-500.0,0.00018773,2]
[359732813,1746286236090,-500.0,0.00018773,2]
[359732814,1746286236099,-500.0,0.00018773,2]
[359732815,1746286236109,-500.0,0.00018773,2]
[359732816,1746286236119,-151.88461974,0.00018773,2]
[359732817,1746286236129,-500.0,0.00018773,2]
[359732818,1746286236140,-500.0,0.00018773,2]
[359732819,1746286236150,-500.0,0.00018773,2]
[359732820,1746286236159,-500.0,0.00018773,2]
[359732821,1746286236169,-500.0,0.00018773,2]
[359732822,1746286236178,-501.1098328,0.00018773,2]
[359732823,1746286236196,-500.0,0.00018773,2]
[359732824,1746286236211,-500.79141894,0.00018773,2]
[359732825,1746286236225,-500.0,0.00018773,2]
[359732826,1746286236237,-500.0,0.00018773,2]
[359732827,1746286236252,-500.0,0.00018773,2]
[359732828,1746286236266,-511.29337322,0.00018773,2]
[359732829,1746286236281,-500.0,0.00018773,2]
[359732830,1746286236294,-500.0,0.00018773,2]
[359732831,1746286236310,-500.0,0.00018773,2]
[359732832,1746286236323,-500.0,0.00018773,2]
[359732833,1746286236336,-500.0,0.00018773,2]
[359732834,1746286236350,-500.0,0.00018773,2]
[359732835,1746286236363,-500.0,0.00018773,2]
[359732836,1746286236378,-500.0,0.00018773,2]
[359732837,1746286236391,-500.0,0.00018773,2]
[359732838,1746286236404,-501.19613124,0.00018773,2]
[359732839,1746286236414,-500.0,0.00018773,2]
[359732840,1746286236427,-510.93041603,0.00018773,2]
[359732841,1746286236440,-155.42299781,0.00018773,2]
[359732842,1746286236453,-500.0,0.00018773,2]
[359732843,1746286236467,-258.24463679,0.00018773,2]
[359732844,1746286236481,-170.52408481,0.00018773,2]
[359732845,1746286236496,-269.80371168,0.00018773,2]
[359732846,1746286236511,-500.0,0.00018773,2]
[359732847,1746286236522,-500.0,0.00018773,2]
[359732848,1746286236533,-500.0,0.00018773,2]
[359732849,1746286236544,-501.38028874,0.00018773,2]
[359732850,1746286236557,-204.22186963,0.00018773,2]
[359732851,1746286236574,-186.12101631,0.00018773,2]
[359732852,1746286236586,-500.0,0.00018773,2]
[359732853,1746286236597,-301.518159,0.00018773,2]
[359732854,1746286236611,-500.0,0.00018773,2]
[359732855,1746286236624,-212.64249238,0.00018773,2]
[359732856,1746286236635,-500.0,0.00018773,2]
[359732857,1746286236649,-500.0,0.00018773,2]
[359732858,1746286236660,-230.9059633,0.00018773,2]
[359732859,1746286236683,-500.0,0.00018773,2]
[359732860,1746286236701,-500.0,0.00018773,2]
[359732861,1746286236716,-761.11,0.00018793,2]
[359732862,1746286236732,-400.0,0.00018793,2]
[359732863,1746286236747,-400.0,0.00018793,2]
[359732864,1746286236763,-400.0,0.00018793,2]
[359732865,1746286236777,-709.59,0.00018793,2]
[359732866,1746286236793,-400.0,0.00018793,2]
[359732867,1746286236809,-400.0,0.00018793,2]
[359732868,1746286236823,-400.0,0.00018793,2]
[359732869,1746286236837,-400.0,0.00018793,2]
[359732870,1746286236849,-400.0,0.00018793,2]
[359732871,1746286236862,-154.191354,0.00018798,2]
[359732872,1746286236875,-2916.666523,0.00018798,2]
[359732873,1746286236888,-2916.666523,0.00018798,2]
[359732874,1746286236901,-2916.666523,0.00018798,2]
[359732875,1746286236913,-2916.66652446,0.00018798,2]
[359732876,1746286236926,-400.0,0.00018821,2]
[359732877,1746286236947,-612.74,0.00018844,2]
[359732878,1746286236960,-400.0,0.00018844,2]
[359732879,1746286236972,-529.29,0.00018844,2]
[359732880,1746286236984,-769.65,0.00018844,2]
[359732881,1746286236996,-400.0,0.00018844,2]
[359732882,1746286237008,-458.9,0.00018844,2]
[359732883,1746286237025,-659.78,0.00018844,2]
[359732884,1746286237039,-400.0,0.00018844,2]
[359732885,1746286237053,-400.0,0.00018844,2]
[359732886,1746286237067,-400.0,0.00018844,2]
[359732887,1746286237081,-445.41604303,0.00018844,2]
[359732888,1746286237095,-403.20084845,0.00018844,2]
[359732889,1746286237108,-911.98,0.00018844,2]
[359732890,1746286237121,-654.64,0.00018844,2]
[359732891,1746286237134,-1034.72,0.00018844,2]
[359732892,1746286237147,-581.46,0.00018844,2]
[359732893,1746286237161,-678.87,0.00018844,2]
[359732894,1746286237173,-446.07824497,0.00018845,2]
[359732895,1746286237185,-587.3154962,0.0001889,2]
[359732896,1746286237198,-1399.5952071,0.000189,2]
[359732897,1746286237212,-476.15917025,0.0001892,2]
[359732898,1746286237224,-400.0,0.00018944,2]
[359732899,1746286237238,-400.0,0.00018944,2]
[359732900,1746286237252,-400.0,0.00018944,2]
[359732901,1746286237264,-400.0,0.00018944,2]
[359732902,1746286237277,-744.43,0.00018944,2]
[359732903,1746286237291,-518.90538555,0.00018944,2]
[359732904,1746286237303,-400.0,0.00018944,2]
[359732905,1746286237316,-400.0,0.00018944,2]
[359732906,1746286237328,-400.0,0.00018944,2]
[359732907,1746286237341,-400.0,0.00018944,2]
[359732908,1746286237355,-400.0,0.00018944,2]
[359732909,1746286237367,-418.13,0.00018944,2]
[359732910,1746286237379,-400.0,0.00018944,2]
[359732911,1746286237388,-400.0,0.00018944,2]
[359732912,1746286237399,-400.0,0.00018944,2]
[359732913,1746286237568,-400.0,0.00018944,2]
[359732914,1746286237587,-400.0,0.00018944,2]
[359732915,1746286237600,-400.0,0.00018944,2]
[359732916,1746286237611,-400.0,0.00018944,2]
[359732917,1746286237621,-405.50547949,0.00018944,2]
[359732918,1746286237631,-400.0,0.00018944,2]
[359732919,1746286237642,-400.0,0.00018944,2]
[359732920,1746286237655,-400.0,0.00018944,2]
[359732921,1746286237665,-350.57460217,0.00018944,2]
[359732922,1746286237674,-400.0,0.00018944,2]
[359732923,1746286237684,-400.0,0.00018944,2]
[359732924,1746286237694,-400.0,0.00018944,2]
[359732925,1746286237704,-400.0,0.00018944,2]
[359732926,1746286237714,-400.0,0.00018944,2]
[359732927,1746286237725,-400.0,0.00018944,2]
[359732928,1746286237734,-400.0,0.00018944,2]
[359732929,1746286237744,-460.45,0.00018944,2]
[359732930,1746286237754,-400.0,0.00018944,2]
[359732931,1746286237763,-580.95,0.00018944,2]
[359732932,1746286237773,-400.0,0.00018944,2]
[359732933,1746286237782,-400.0,0.00018944,2]
[359732934,1746286237792,-400.0,0.00018944,2]
[359732935,1746286237802,-400.0,0.00018944,2]
[359732936,1746286237811,-400.0,0.00018944,2]
[359732937,1746286237820,-804.0,0.00018944,2]
[359732938,1746286237830,-589.87,0.00018944,2]
[359732939,1746286237840,-607.93,0.00018944,2]
[359732940,1746286237849,-1252.05,0.00018944,2]
[359732941,1746286237859,-405.68441603,0.00018944,2]
[359732942,1746286237869,-400.0,0.00018944,2]
[359732943,1746286237879,-400.0,0.00018944,2]
[359732944,1746286237888,-400.0,0.00018944,2]
[359732945,1746286237898,-551.79,0.00018944,2]
[359732946,1746286237908,-400.0,0.00018944,2]
[359732947,1746286237917,-400.0,0.00018944,2]
[359732948,1746286237927,-400.0,0.00018944,2]
[359732949,1746286237936,-484.62,0.00018944,2]
[359732950,1746286237946,-400.0,0.00018944,2]
[359732951,1746286237956,-435.04,0.00018944,2]
[359732952,1746286237966,-400.0,0.00018944,2]
[359732953,1746286237975,-400.0,0.00018944,2]
[359732954,1746286237985,-400.0,0.00018944,2]
[359732955,1746286237994,-1672.22,0.00018945,2]
[359732956,1746286238004,-581.5,0.00018945,2]
[359732957,1746286238014,-400.0,0.00018945,2]
[359732959,1746286238023,-414.46,0.00018945,2]
[359732960,1746286238034,-848.92,0.00018945,2]
[359732961,1746286238044,-400.0,0.00018945,2]
[359732963,1746286238053,-2159.78,0.00018945,2]
[359732964,1746286238063,-786.0,0.00018945,2]
[359732965,1746286238072,-400.0,0.00018945,2]
[359732966,1746286238082,-815.22,0.00018966,2]
[359732967,1746286238091,-400.0,0.00018966,2]
[359732968,1746286238100,-841.24,0.00018966,2]
[359732969,1746286238110,-400.0,0.00018966,2]
[359732970,1746286238119,-2437.89,0.00018966,2]
[359732971,1746286238128,-400.0,0.00018966,2]
[359732972,1746286238137,-501.67,0.00018966,2]
[359732973,1746286238147,-717.19,0.00018966,2]
[359732974,1746286238157,-400.0,0.00018966,2]
[359732976,1746286238167,-588.4,0.00018966,2]
[359732977,1746286238176,-1546.2,0.00018966,2]
[359732978,1746286238185,-400.0,0.00018966,2]
[359732980,1746286238195,-508.44,0.00018966,2]
[359732982,1746286238204,-1134.81,0.00018966,2]
[359732984,1746286238213,-342.07815509,0.00018976,2]
[359732986,1746286238223,-1380.0,0.00019,2]
[359732988,1746286238232,-3023.0,0.00019,2]
[359732990,1746286238241,-6928.0,0.00019,2]
[359732991,1746286238251,-2243.0,0.00019,2]
[359732992,1746286238260,-11128.26056896,0.00019,2]
[359732993,1746286238269,-400.0,0.00019046,2]
[359732994,1746286238278,-400.0,0.00019046,2]
[359732995,1746286238287,-400.0,0.00019046,2]
[359732996,1746286238296,-400.0,0.00019046,2]
[359732998,1746286238305,-400.0,0.00019046,2]
[359733000,1746286238315,-400.0,0.00019046,2]
[359733002,1746286238325,-400.0,0.00019046,2]
[359733004,1746286238334,-400.0,0.00019046,2]
[359733006,1746286238344,-400.0,0.00019046,2]
[359733008,1746286238353,-400.0,0.00019046,2]
[359733010,1746286238363,-400.0,0.00019046,2]
[359733012,1746286238372,-400.0,0.00019046,2]
[359733014,1746286238382,-400.0,0.00019046,2]
[359733016,1746286238391,-400.0,0.00019046,2]
[359733018,1746286238400,-400.0,0.00019046,2]
[359733020,1746286238409,-400.0,0.00019046,2]
[359733022,1746286238418,-400.0,0.00019046,2]
[359733024,1746286238428,-400.0,0.00019046,2]
[359733026,1746286238437,-400.0,0.00019046,2]
[359733028,1746286238446,-400.0,0.00019046,2]
[359733030,1746286238457,-400.0,0.00019046,2]
[359733032,1746286238466,-400.0,0.00019046,2]
[359733034,1746286238475,-407.3208452,0.00019046,2]
[359733036,1746286238484,-400.0,0.00019046,2]
[359733038,1746286238494,-400.0,0.00019046,2]
[359733040,1746286238503,-400.0,0.00019046,2]
[359733042,1746286238512,-400.0,0.00019046,2]
[359733044,1746286238522,-400.0,0.00019046,2]
[359733046,1746286238531,-400.0,0.00019046,2]
[359733048,1746286238541,-400.0,0.00019046,2]
[359733050,1746286238550,-400.0,0.00019046,2]
[359733052,1746286238559,-400.0,0.00019046,2]
[359733054,1746286238569,-400.67690075,0.00019046,2]
[359733056,1746286238579,-400.0,0.00019046,2]
[359733058,1746286238588,-400.0,0.00019046,2]
[359733060,1746286238597,-400.0,0.00019046,2]
[359733062,1746286238606,-400.0,0.00019046,2]
[359733064,1746286238616,-400.0,0.00019046,2]
[359733066,1746286238625,-400.0,0.00019046,2]
[359733068,1746286238634,-400.0,0.00019046,2]
[359733070,1746286238647,-400.0,0.00019046,2]
[359733072,1746286238656,-400.0,0.00019046,2]
[359733074,1746286238665,-400.0,0.00019046,2]
[359733076,1746286238675,-400.0,0.00019046,2]
[359733078,1746286238684,-400.0,0.00019046,2]
[359733080,1746286238694,-400.0,0.00019046,2]
[359733082,1746286238704,-400.0,0.00019046,2]
[359733084,1746286238714,-831.91,0.00019046,2]
[359733086,1746286238724,-400.0,0.00019046,2]
[359733088,1746286238734,-400.0,0.00019046,2]
[359733091,1746286238744,-400.0,0.00019046,2]
[359733093,1746286238753,-400.0,0.00019046,2]
[359733095,1746286238762,-400.0,0.00019046,2]
[359733097,1746286238771,-400.0,0.00019046,2]
[359733099,1746286238781,-400.0,0.00019046,2]
[359733101,1746286238791,-587.3154962,0.00019055,2]
[359733103,1746286238800,-761.11,0.00019067,2]
[359733105,1746286238809,-400.0,0.00019067,2]
[359733107,1746286238819,-400.0,0.00019067,2]
[359733109,1746286238828,-400.0,0.00019067,2]
[359733111,1746286238838,-709.59,0.00019067,2]
[359733113,1746286238847,-400.0,0.00019067,2]
[359733115,1746286238856,-400.0,0.00019067,2]
[359733118,1746286238868,-171.38669466,0.00019067,2]
[359733120,1746286238877,-216.77409194,0.00019067,2]
[359733122,1746286238887,-400.0,0.00019067,2]
[359733124,1746286238897,-400.0,0.00019095,2]
[359733126,1746286238906,-612.74,0.00019118,2]
[359733128,1746286238916,-400.0,0.00019118,2]
[359733130,1746286238925,-529.29,0.00019118,2]
[359733132,1746286238934,-769.65,0.00019118,2]
[359733134,1746286238944,-400.0,0.00019118,2]
[359733135,1746286238952,-458.9,0.00019118,2]
[359733136,1746286238962,-659.78,0.00019118,2]
[359733137,1746286238971,-400.0,0.00019118,2]
[359733138,1746286238980,-400.0,0.00019118,2]
[359733139,1746286238989,-911.98,0.00019118,2]
[359733140,1746286238998,-654.64,0.00019118,2]
[359733141,1746286239007,-1034.72,0.00019118,2]
[359733142,1746286239016,-431.40442109,0.00019118,2]
[359733168,1746286239431,-348.28,0.00018944,2]
[359733171,1746286239447,-51.72,0.00018944,2]
[359733173,1746286239457,-150.05557891,0.00019118,2]
[359733175,1746286239466,-678.87,0.00019118,2]
[359733177,1746286239475,-151.0,0.00019178,2]
[359733179,1746286239485,-151.0,0.00019178,2]
[359733181,1746286239494,-151.0,0.00019178,2]
[359733183,1746286239504,-151.0,0.00019178,2]
[359733185,1746286239513,-500.0,0.00019178,2]
[359733187,1746286239523,-151.0,0.00019178,2]
[359733189,1746286239532,-151.56533223,0.00019178,2]
[359733191,1746286239541,-500.0,0.00019178,2]
[359733193,1746286239550,-151.0,0.00019178,2]
[359733195,1746286239559,-214.59395697,0.00019178,2]
[359733197,1746286239569,-151.0,0.00019178,2]
[359733199,1746286239578,-151.0,0.00019178,2]
[359733201,1746286239588,-500.0,0.00019178,2]
[359733203,1746286239597,-152.21881743,0.00019178,2]
[359733205,1746286239606,-500.0,0.00019178,2]
[359733207,1746286239615,-318.020713,0.00019178,2]
[359733209,1746286239624,-151.0,0.00019178,2]
[359733211,1746286239634,-151.0,0.00019178,2]
[359733213,1746286239646,-151.0,0.00019178,2]
[359733215,1746286239656,-151.0,0.00019178,2]